Cogmind - Beta 16 @@@ ROGUE MODE // 2026.01.02 @ 21:23:15 Player: MrProgressor Result: Destroyed by S-27 Virus with Autogun Performance ------------- Evolutions (5) 2500 Regions Visited (16) 3200 Robots Destroyed (199) 995 Value Destroyed (8700) 8700 Prototype IDs (49) 980 Alien Tech Used (0) 0 Bonus (7262) 7262 TOTAL SCORE: 23637 Bonus ------- High Alert Combat Kills 1096 Follower Combat Kills 3077 Entered Garrisons 400 Used RIF Installer 1000 Network Hubs Disabled 400 Aligned with FarCom 300 Built Enhanced Grunts 300 A7 Reached Mainframe 300 Met R17 at Cetus 500 Friendly Fire -111 Cogmind --------- Core Integrity 0/1000 Matter 89/300 Energy 100/100 System Corruption 0% Temperature Cool (0) Movement Core (50) Location -5/Upper Caves Parts ------- > --- POWER (2) -------- (None) > --- PROPULSION (4) --- Improved VSS Leg > --- UTILITY (9) ------ Improved Coolant Injector Visual Processing Unit Hacking Suite > --- WEAPON (2) ------- (None) > --- INVENTORY (5) ---- F-cell Engine High-capacity Storage Unit Advanced Energy Well (500) Cloak of Protection Peak State ------------ > --- POWER ------------ Cold Fusion Reactor Reinforced Fission Core > --- PROPULSION ------- Centrium Heavy Treads Centrium Heavy Treads > --- UTILITY ---------- Advanced Heat Sink Improved Coolant Injector Huge Storage Unit Visual Processing Unit Improved Transmission Jammer Centrium Medium Armor Plating Hacking Suite Improved Hacking Suite Advanced System Restoration Module > --- WEAPON ----------- Heavy Plasma Cannon Enhanced Coil Gun > --- INVENTORY -------- F-cell Engine Quantum Reactor Improved Treads Improved Treads Centrium Heavy Treads Advanced Heat Sink High-capacity Storage Unit Advanced Energy Well Improved Kinecellerator Launcher Loader Weapon Cycler Active Sensor Spoofer Cloak of Protection Dynamic Insulation System Advanced System Restoration Module Wave Gun Wave Gun Advanced KE Penetrator Advanced KE Penetrator Missile Launcher Advanced Datajack Remote Datajack Power Maul [Rating: 117] Favorites ----------- Power Cooled Deuterium Engine Engine Cooled Deuterium Engine Power Core Hybrid Fission Core Reactor Cold Fusion Reactor Propulsion Wheel Treads Centrium Heavy Treads Leg Improved VSS Leg Wheel Wheel Utility Huge Storage Unit Device Improved Terrain Scanner Storage Huge Storage Unit Processor Advanced Visual Processing Unit Hackware Hacking Suite Protection Hardened Medium Armor Plating Weapon Heavy Plasma Cannon Energy Gun Improved EM Shotgun Energy Cannon Heavy Plasma Cannon Ballistic Gun High-powered Shotgun Ballistic Cannon Light Cannon Launcher Grenade Launcher Special Weapon Remote Datajack Impact Weapon Heavy Flail Slashing Weapon Katana Special Melee Weapon Improved Datajack Build | -11 -10 -10 -10 -9 -8 -7 -7 -7 -7 -6 -6 -6 -6 -6 -5 -5 ------- Run | Yrd Mat Min Exi Min Mat Fac Gar Fac Gar Fac Ext Cet Arc Hub Fac Upp Slots Evolved 10 | . . . . . 4 2 . . . 2 . . . . 2 . Power 1 | . . . . . . . . . . . . . . . 1 . Propulsion 2 | . . . . . . 1 . . . 1 . . . . . . Utility 7 | . . . . . 4 1 . . . 1 . . . . 1 . Weapon . | . . . . . . . . . . . . . . . . . Parts Attached 207 | 4 19 7 . . 28 18 8 13 15 10 15 10 12 16 31 1 Power 15 | . 2 1 . . . 1 . 1 1 3 1 . . 1 4 . Engine 9 | . 2 1 . . . 1 . 1 1 3 . . . . . . Core 3 | . . . . . . . . . . . 1 . . . 2 . Reactor 3 | . . . . . . . . . . . . . . 1 2 . Propulsion 42 | 4 5 2 . . 4 3 1 1 2 1 4 1 3 4 7 . Treads 15 | 2 . . . . . . . . . . . 1 3 4 5 . Leg 1 | . . . . . . . . . . . . . . . 1 . Wheel 26 | 2 5 2 . . 4 3 1 1 2 1 4 . . . 1 . Hover . | . . . . . . . . . . . . . . . . . Flight . | . . . . . . . . . . . . . . . . . Utility 94 | . 7 1 . . 12 10 3 4 9 6 8 6 6 7 14 1 Device 43 | . 4 1 . . 3 5 2 1 3 4 1 3 4 2 9 1 Storage 9 | . 2 . . . 1 . . 1 . . 1 . . 3 1 . Processor 12 | . . . . . 3 3 . 2 1 1 1 . . . 1 . Hackware 18 | . . . . . 1 1 1 . 4 . 4 1 2 2 2 . Protection 12 | . 1 . . . 4 1 . . 1 1 1 2 . . 1 . Artifact . | . . . . . . . . . . . . . . . . . Weapon 56 | . 5 3 . . 12 4 4 7 3 . 2 3 3 4 6 . Energy Gun 15 | . 2 . . . 6 . . 1 . . . 1 1 . 4 . Energy Cannon 10 | . . . . . 1 . 4 1 2 . . . . 2 . . Ballistic Gun 14 | . 2 2 . . 2 1 . 2 . . . 2 1 1 1 . Ballistic Cannon 1 | . . . . . 1 . . . . . . . . . . . Launcher 5 | . 1 1 . . 1 1 . 1 . . . . . . . . Special Weapon 3 | . . . . . . . . 1 1 . 1 . . . . . Impact Weapon 2 | . . . . . 1 . . . . . . . . . 1 . Slashing Weapon 3 | . . . . . . 2 . . . . . . 1 . . . Piercing Weapon . | . . . . . . . . . . . . . . . . . Special Melee Weapon 3 | . . . . . . . . 1 . . 1 . . 1 . . Unidentified Prototypes 20 | . . . . . 5 1 . 2 . 3 . 4 . 2 3 . Corrupted Parts 1 | . . . . . . . . . . . . . 1 . . . System Corruption 1 | . . . . . . . . . . . . . 1 . . . Parts Lost 56 | . 5 . . . 4 2 . . 10 . 1 1 . 2 31 . Power 6 | . . . . . . . . . 1 . . . . . 5 . Propulsion 17 | . 2 . . . 2 2 . . 2 . 1 . . 1 7 . Utility 23 | . 1 . . . 2 . . . 6 . . 1 . 1 12 . Weapon 10 | . 2 . . . . . . . 1 . . . . . 7 . Highest Loss Streak 20 | . 2 . . . 1 1 . . 6 . 1 1 . 2 20 . To Critical Strikes . | . . . . . . . . . . . . . . . . . Average Backups 20 | 5 7 14 15 15 19 24 24 24 20 22 23 22 22 22 20 3 Power 1 | 1 1 2 2 2 2 2 2 1 . 1 3 2 2 2 2 . Propulsion 2 | 2 2 1 3 3 2 2 2 2 1 1 1 2 3 3 2 . Utility 9 | . 3 5 6 6 4 9 14 13 10 12 11 9 8 10 8 3 Weapon 6 | 1 1 4 4 4 9 10 6 6 5 4 4 5 6 5 5 . Tool/Special . | . . . . . . . . . . . . . . . . . Unused Backups 55 | 10 6 5 . 2 5 8 1 3 . 5 . 5 . 3 1 1 Power 8 | 2 . 1 . . 2 2 . . . . . 1 . . . . Propulsion 7 | 4 2 . . . . . . . . . . . . 1 . . Utility 24 | 2 2 2 . 2 . 1 . 3 . 4 . 4 . 2 1 1 Weapon 16 | 2 2 2 . . 3 5 1 . . 1 . . . . . . Tool/Special . | . . . . . . . . . . . . . . . . . Average Slot Usage (%) 92 | . 97 99 100 100 97 96 92 91 92 88 93 92 90 92 87 27 Engine 5 | . 14 14 14 14 9 7 7 7 7 6 2 . . . 1 1 Core 1 | . . . . . . . . . . . 3 6 6 6 6 . Treads 3 | . 7 . . . . . . . . . . . 5 19 13 . Wheel 14 | . 19 28 28 28 17 19 15 14 16 16 20 19 12 . 1 . Device 13 | . 9 13 14 14 11 9 15 13 15 17 12 13 17 13 22 7 Storage 7 | . 14 14 14 14 9 7 7 7 7 6 6 6 6 6 4 . Processor 13 | . . . . . 17 23 23 23 16 13 13 13 13 13 5 5 Hackware 7 | . . . . . 6 7 7 7 6 5 12 6 10 15 10 5 Protection 4 | . 3 . . . 8 4 . 1 5 8 6 10 3 3 4 . Energy Gun 3 | . 9 8 . . 8 2 . . 4 1 3 1 . . 3 . Energy Cannon 4 | . . . . . . . 13 10 7 6 6 8 1 7 2 . Ballistic Gun 4 | . 15 11 14 14 6 6 1 1 . . . 1 1 3 3 . Launcher 1 | . 2 8 14 14 . . . . . . . . . . . . Peak Build Rating 117 | 6 10 11 11 11 33 47 55 57 56 69 71 86 95 101 117 29 Average Rating 53 | 6 8 9 11 11 27 39 49 52 52 60 65 76 77 92 100 21 On Entrance 41 | 6 6 8 11 11 11 30 47 55 56 52 68 68 79 85 87 18 Avg Prop Armor Cover (%) 13 | . 12 . . . . . . . 7 . . 5 23 7 5 22 Naked Turns . | . . . . . . . . . . . . . . . . . Heaviest Build 141 | 13 30 31 31 31 101 110 118 125 122 119 119 127 116 119 141 1 Greatest Support 160 | 40 40 26 26 26 32 42 38 38 40 56 56 80 160 140 160 3 Greatest Overweight (x) 11 | . 1 1 1 1 4 5 3 3 11 2 2 5 4 . 2 . Average Overweight (x) 1 | . . 1 1 1 2 2 2 2 2 2 1 3 1 . . . Largest Inventory Capacity 25 | 8 15 15 15 15 25 25 25 25 25 25 25 25 25 25 25 5 Average Capacity 22 | 8 8 15 15 15 21 25 25 25 25 25 25 25 25 25 24 5 Most Carried 25 | 7 11 15 15 15 25 25 25 25 25 25 25 25 25 25 25 4 Average Carried 21 | 4 7 14 14 14 19 24 24 24 23 24 24 24 24 24 23 3 Final Capacity 25 | 8 15 15 15 15 25 25 25 25 25 25 25 25 25 25 5 5 Final Carried 25 | 7 11 15 15 15 25 25 25 25 23 24 24 25 25 25 5 4 Class Distribution -------------------- 23% | Mutant 19% | Skirmisher 14% | Scavenger-Mutant 9% | Scavenger-Skirmisher 8% | Assassin 7% | Bothacker-Skirmisher 4% | Commander-Mutant 4% | Bothacker-Mutant 3% | Scavenger-Assassin Dominant Class ---------------- Mutant | -10/Materials Mutant | -10/Mines Scavenger-Mutant | -10/Exiles Scavenger-Skirmisher | -9/Mines Mutant | -8/Materials Assassin | -7/Factory Mutant | -7/Garrison Skirmisher | -7/Factory Skirmisher | -7/Garrison Bothacker-Skirmisher | -6/Factory Commander-Mutant | -6/Extension Scavenger-Mutant | -6/Cetus Commander-Assassin | -6/Archives Scavenger-Skirmisher | -6/Hub_04(d) Scavenger-Mutant | -5/Factory Mutant | -5/Upper Caves Resources | -11 -10 -10 -10 -9 -8 -7 -7 -7 -7 -6 -6 -6 -6 -6 -5 -5 ----------- Run | Yrd Mat Min Exi Min Mat Fac Gar Fac Gar Fac Ext Cet Arc Hub Fac Upp Matter Collected 6048 | 262 601 383 . . 887 604 282 292 625 131 429 204 234 474 615 25 Remotely . | . . . . . . . . . . . . . . . . . Salvage Created 8307 | 54 1071 171 . . 1200 454 227 339 941 372 630 182 451 907 1308 . Parts 401 | 6 58 13 . . 56 25 6 17 44 14 29 9 24 44 56 . Haulers Intercepted 17 | . 2 . . . 4 4 . 1 . 1 . . . 5 . . Recyclers Shooed 3 | . . . . . . . . 1 . 1 . . . . 1 . Parts Field Recycled 6 | . . . . . . 6 . . . . . . . . . . Retrieved Matter 37 | . . . . . . 37 . . . . . . . . . . Parts Self-Destructed . | . . . . . . . . . . . . . . . . . Prevented . | . . . . . . . . . . . . . . . . . Parts Restored . | . . . . . . . . . . . . . . . . . Kills | -11 -10 -10 -10 -9 -8 -7 -7 -7 -7 -6 -6 -6 -6 -6 -5 -5 ------- Run | Yrd Mat Min Exi Min Mat Fac Gar Fac Gar Fac Ext Cet Arc Hub Fac Upp Combat Hostiles Destroyed 132 | . 23 7 . . 19 6 4 4 17 3 9 2 2 6 30 . Melee 1 | . . . . . . . . . . . . . . . 1 . Guns 62 | . 22 2 . . 10 3 . 1 4 1 4 . 2 2 11 . Cannons 36 | . . . . . 3 . 3 3 12 2 5 1 . 4 3 . AOE 25 | . 1 5 . . 5 3 . . . . . . . . 11 . Classes Destroyed 20 | 1 8 . . . 1 2 1 . . . 4 . . 1 2 . Worker 8 | . 1 . . . 4 1 . . . . . . . 2 . . Builder 5 | . 1 . . . 1 . . . . . . . . 1 2 . Tunneler 2 | 2 . . . . . . . . . . . . . . . . Hauler 17 | . 2 . . . 4 4 . 1 . 1 . . . 5 . . Recycler 5 | . 1 . . . 1 2 . . . 1 . . . . . . Carrier 1 | . . . . . . . . . . . 1 . . . . . Operator 9 | . . . . . . 1 . . . . 1 . 7 . . . Watcher 17 | . 3 . . . 4 2 . 3 . . . . . 2 3 . Swarmer 28 | . 8 3 . . . 2 . . 4 . 2 . . . 9 . Grunt 59 | . 14 4 . . 18 . 2 . 9 1 2 . 1 1 7 . Brawler 3 | . . . . . . . . . . . . . . . 3 . Protector 1 | . . . . . . . . . . . . . . 1 . . Sentry 12 | . . . . . 1 . 1 . . 2 2 . 2 2 2 . Specialist 2 | . . . . . . . . . . . 1 . . . 1 . Hunter 3 | . . . . . . . 1 1 . . 1 . . . . . Programmer 20 | . . . . . . 4 . 3 4 . . . . 2 7 . Heavy 1 | . . . . . . . . . . . . . . . 1 . Behemoth 1 | . . . . . . . . . . . 1 . . . . . Cetus Guard 2 | . . . . . . . . . . . . 2 . . . . Subdweller 1 | . 1 . . . . . . . . . . . . . . . Thug 1 | . . . . . . . . . . . . 1 . . . . Butcher 1 | . . . . . . . . . . . 1 . . . . . Best Kill Streak 17 | 1 6 3 . . 7 5 2 2 8 1 2 1 3 3 17 . Combat Bots Only 16 | . 5 3 . . 6 2 2 2 8 1 2 1 2 2 16 . Max Kills in Single Turn 5 | 1 2 3 . . 3 1 1 1 1 1 1 1 2 2 5 . Gunslinging . | . . . . . . . . . . . . . . . . . Exploded 5 | . 1 3 . . 2 1 . . . . . . . . 5 . Melee 1 | . . . . . . . . . . . . . . . 1 . Uniques/NPCs Destroyed . | . . . . . . . . . . . . . . . . . Combat | -11 -10 -10 -10 -9 -8 -7 -7 -7 -7 -6 -6 -6 -6 -6 -5 -5 -------- Run | Yrd Mat Min Exi Min Mat Fac Gar Fac Gar Fac Ext Cet Arc Hub Fac Upp Hostile Shots Fired 1044 | . 114 13 . . 90 56 34 22 118 15 79 13 5 37 438 10 Missed 297 | . 30 6 . . 29 15 11 6 27 5 30 5 2 12 114 5 Hits 747 | . 84 7 . . 61 41 23 16 91 10 49 8 3 25 324 5 Melee 8 | . . . . . . . . . . . . . . . 8 . Projectile 739 | . 84 7 . . 61 41 23 16 91 10 49 8 3 25 316 5 AOE 4 | . 2 . . . . . . . . . . . . . 2 . Critical Strikes 28 | . . 1 . . 3 1 . . 5 . 2 . . 2 14 . Part Disruptions 2 | . . . . . . . . . . . . . . . 2 . Actively Blocked 2 | . . . . . . . . . . . . . . . 2 . Damage Taken 13218 | . 1001 88 . . 994 792 186 237 1229 136 634 217 65 673 6891 75 Core 2002 | . 199 29 . . 142 77 39 45 245 41 40 . 21 113 937 74 Absorbed by Shields 616 | . . . . . . 25 77 8 293 . 169 44 . . . . Reduced by Siege Mode 420 | . . . . . . . . . . . . . . 4 416 . Ignored by Resistances 36 | . . . . . . . . . . . 13 . . 23 . . Regen/Repaired (Parts) 383 | . . . . . 217 59 . 107 . . . . . . . . Core Remaining (%) 59 | 100 . . . 8 74 . . . 42 . . . . 74 . . Volleys Fired 606 | 4 77 12 . . 78 36 27 50 87 20 44 16 7 42 106 . Largest 2 | 2 2 2 . . 2 2 2 2 2 2 2 2 2 2 2 . Hottest 340 | 60 70 60 . . 93 90 180 165 165 165 180 240 90 180 340 . Shots Fired 971 | 8 147 17 . . 144 53 38 64 121 25 68 28 13 75 170 . Gun 566 | 8 144 11 . . 124 40 . 13 38 5 16 3 12 30 122 . Cannon 351 | . . . . . 12 . 38 47 80 17 47 24 1 45 40 . Launcher 34 | . 3 6 . . 8 13 . 1 . . . . . . 3 . Special 20 | . . . . . . . . 3 3 3 5 1 . . 5 . Kinetic 350 | 4 106 6 . . 94 32 . 12 . . . 2 12 30 52 . Thermal 541 | 4 38 5 . . 24 . 38 48 118 22 63 25 1 45 110 . Explosive 34 | . 3 6 . . 8 13 . 1 . . . . . . 3 . Electromagnetic 26 | . . . . . 18 8 . . . . . . . . . . Robot Hit Streak 25 | 5 25 5 . . 10 8 12 16 10 13 18 6 6 14 19 . Robot Miss Streak 8 | 1 2 1 . . 3 8 1 6 5 2 7 1 2 2 4 . Penetration Max 1 | . . . . . . . . . . . . . 1 . 1 . Secondary Targets 12 | . 5 . . . 3 . . . . . . . . . 4 . Max Gunslinging Chain 1 | . 1 . . . 1 . . . . . . . . . 1 . Shots Hit Robots 681 | 5 106 10 . . 110 49 18 32 55 14 56 18 35 48 125 . Core Hits 401 | 2 49 11 . . 68 31 8 11 48 15 41 11 10 26 70 . Critical Kills 16 | . . . . . 1 . 1 2 2 . 1 . 2 2 5 . Critical Parts Destroyed 10 | . . . . . . 1 . . . . . . 2 1 6 . Critical Strikes 31 | . . . . . 1 1 1 2 2 . 1 . 6 3 14 . Burn 2 | . . . . . . . . . . . . . . . 2 . Meltdown 8 | . . . . . . . 1 2 2 . 1 . . 1 1 . Destroy 16 | . . . . . 1 1 . . . . . . 4 2 8 . Smash 3 | . . . . . . . . . . . . . . . 3 . Sever 2 | . . . . . . . . . . . . . 2 . . . Melee Attacks 107 | . . . . . 13 30 . 5 8 . 5 . 30 8 8 . Impact 21 | . . . . . 13 . . . . . . . . . 8 . Slashing 55 | . . . . . . 30 . . . . . . 25 . . . Piercing . | . . . . . . . . . . . . . . . . . Sneak Attacks 26 | . . . . . 1 4 . 5 . . . . 14 2 . . Combat Hostiles . | . . . . . . . . . . . . . . . . . Follow-up Attacks . | . . . . . . . . . . . . . . . . . Damage Inflicted 21085 | 61 1457 324 . . 2934 1806 470 925 1565 344 1494 652 1807 1712 5527 7 Guns 8787 | 61 1326 78 . . 1690 612 . 130 479 121 392 46 319 378 3155 . Cannons 5846 | . . . . . 196 . 470 553 1086 223 1102 606 . 1027 583 . Explosions 3911 | . 125 246 . . 899 574 . 242 . . . . . 307 1518 . Melee 2528 | . . . . . 149 620 . . . . . . 1488 . 271 . Ramming 13 | . 6 . . . . . . . . . . . . . . 7 Kinetic 5243 | 37 1075 44 . . 1206 526 . 123 . . . 46 319 378 1489 . Thermal 9394 | 24 251 34 . . 371 . 470 778 1565 344 1494 606 . 1027 2430 . Explosive 3205 | . 125 246 . . 899 574 . 24 . . . . . . 1337 . Electromagnetic 702 | . . . . . 309 86 . . . . . . . 307 . . Impact 420 | . . . . . 149 . . . . . . . . . 271 . Slashing 2108 | . . . . . . 620 . . . . . . 1488 . . . Piercing . | . . . . . . . . . . . . . . . . . Highest Corruption 11 | . . . . . . 3 3 6 8 6 8 8 8 6 11 8 Average Corruption 4 | . . . . . . 2 3 4 6 1 6 8 7 1 9 5 Corruption Purged 27 | . . . . . . . . . . . . . 9 . 10 8 Corruption Blocked . | . . . . . . . . . . . . . . . . . Effects 271 | . . . . . . 17 21 40 51 6 47 22 7 4 52 4 Message Errors 61 | . . . . . . 4 6 9 10 . 11 4 1 1 13 2 Matter Fused 57 | . . . . . . 7 5 10 8 1 8 3 2 2 11 . Heat Flow Errors 33 | . . . . . . 3 2 4 10 1 6 3 . . 3 1 Energy Discharges 34 | . . . . . . 2 2 7 7 . 7 4 1 . 3 1 Parts Rejected 6 | . . . . . . . . . 1 . 1 . . . 4 . Parts Fused 4 | . . . . . . . . 2 . . 1 1 . . . . Data Loss (minor) 35 | . . . . . . 1 2 6 7 1 6 4 1 . 7 . Data Loss (major) 16 | . . . . . . . 3 . 2 2 2 1 1 . 5 . Misfires 6 | . . . . . . . 1 1 2 . 2 . . . . . Alerts 14 | . . . . . . . . 1 3 1 2 2 1 . 4 . Misdirections 1 | . . . . . . . . . . . . . . . 1 . Weapon Failures 4 | . . . . . . . . . 1 . 1 . . 1 1 . Overload Shots 4 | . . . . . . . . . . . . 1 . . 3 . Effects 1 | . . . . . . . . . . . . . . . 1 . Short Circuit 1 | . . . . . . . . . . . . . . . 1 . Overflow Damage 1030 | . . 4 . . 2 18 . 131 8 . 3 . 660 32 172 . Projectiles 36 | . . . . . . . . 8 8 . 3 . . 1 16 . Explosions 286 | . . 4 . . 2 18 . 123 . . . . . 31 108 . Melee 708 | . . . . . . . . . . . . . 660 . 48 . Knockbacks 1 | . . . . . . . . . . . . . . . 1 . Impact 1 | . . . . . . . . . . . . . . . 1 . Kinetic . | . . . . . . . . . . . . . . . . . Secondary . | . . . . . . . . . . . . . . . . . Self-Inflicted Damage 447 | . 58 . . . . 207 . . . . . . . 156 23 3 Shots 12 | . 3 . . . . 6 . . . . . . . 2 1 . Rammed 5 | . 2 . . . . . . . . . . . . . . 3 Targets Rammed 5 | . 2 . . . . . . . . . . . . . . 3 Kicked . | . . . . . . . . . . . . . . . . . Crushed . | . . . . . . . . . . . . . . . . . Highest Temperature 653 | . 96 47 . . 193 260 166 198 495 251 352 322 . 60 653 108 Average Temperature 89 | . 25 24 . . 44 70 35 54 126 42 109 100 . 17 149 58 Received Heat Transfer 3111 | . 360 63 . . 540 . 84 . 514 36 217 22 . 60 1215 . Effects 16 | . . . . . . . . . 6 . 3 2 . . 5 . Shutdowns 3 | . . . . . . . . . 2 . . . . . 1 . Energy Bleed 4 | . . . . . . . . . 2 . 2 . . . . . Interference 2 | . . . . . . . . . . . 1 . . . 1 . Matter Decay 1 | . . . . . . . . . . . . . . . 1 . Short Circuit 3 | . . . . . . . . . 1 . . . . . 2 . Damage (minor) 3 | . . . . . . . . . 1 . . 2 . . . . Siege Activations 3 | . . . . . . . . . . . . . . 1 2 . Total Turns 112 | . . . . . . . . . . . . . . 17 95 . Longest Duration 58 | . . . . . . . . . . . . . . 17 58 . Martial Activations . | . . . . . . . . . . . . . . . . . Shielding Activations . | . . . . . . . . . . . . . . . . . Robots Disrupted . | . . . . . . . . . . . . . . . . . Combat Hostiles . | . . . . . . . . . . . . . . . . . Robots Corrupted 2 | . . . . . 2 . . . . . . . . . . . Combat Hostiles 1 | . . . . . 1 . . . . . . . . . . . Parts Fried 5 | . . . . . 4 . . . . . 1 . . . . . Impact Corruptions 3 | . . . . . . . . . . . . . . . 3 . Robots Melted 12 | . . . . . . . 1 2 2 . 1 1 . 1 4 . Combat Hostiles 7 | . . . . . . . 1 . 1 . . 1 . . 4 . Parts Melted 22 | . . . . . 1 . 2 . 3 . 2 . . 1 13 . Heat Transferred 13563 | 50 575 75 . . 703 . 822 905 2045 450 1966 950 . 1575 3447 . Parts Sabotaged . | . . . . . . . . . . . . . . . . . Parts Stolen . | . . . . . . . . . . . . . . . . . Parts Stripped . | . . . . . . . . . . . . . . . . . Power Chain Reactions . | . . . . . . . . . . . . . . . . . Alert | -11 -10 -10 -10 -9 -8 -7 -7 -7 -7 -6 -6 -6 -6 -6 -5 -5 ------- Run | Yrd Mat Min Exi Min Mat Fac Gar Fac Gar Fac Ext Cet Arc Hub Fac Upp Maximum Alert Level 4 | . 1 1 . . 1 . 1 . 3 2 3 2 1 4 4 . Low Security (%) 46 | 100 58 49 . 100 28 100 44 100 61 . 32 . 64 19 . . Level 1 27 | . 41 50 . . 71 . 55 . 14 47 27 . 35 12 29 . Level 2 16 | . . . . . . . . . 19 52 24 100 . 1 62 . Level 3 7 | . . . . . . . . . 4 . 15 . . 55 2 . Level 4 1 | . . . . . . . . . . . . . . 11 4 . Level 5 . | . . . . . . . . . . . . . . . . . High Security . | . . . . . . . . . . . . . . . . . Max Security . | . . . . . . . . . . . . . . . . . Peak Influence 1379 | 5 369 283 . . 372 154 267 161 718 553 893 663 392 1379 1255 . Initial 670 | . 3 132 . . . 121 2 140 16 376 222 484 233 . 670 . Average 281 | 1 179 181 . . 239 48 155 38 242 422 375 552 120 665 525 . Influence Increases 10296 | 10 701 271 . . 857 438 265 349 862 511 1599 447 249 2315 1422 . Destroy 0b10 Robot/C 4220 | . 440 140 . . 460 120 80 80 420 180 760 200 80 600 660 . Destroy 0b10 Robot/NC 385 | 10 40 . . . 75 50 . 20 15 15 20 10 35 70 25 . Destroy Leader 818 | . 90 30 . . 98 52 10 48 40 54 106 10 . 174 106 . Allied During Kill 1588 | . . . . . 18 . . . 17 71 554 192 115 614 7 . Trap Triggered on 0b10 50 | . . . . . . . . . 40 10 . . . . . . Successful Hack 341 | . 39 . . . 49 64 . 103 . . 39 7 . 19 21 . Select Force Hacks 30 | . 30 . . . . . . . . . . . . . . . Disable Machine 1065 | . . 75 . . 60 90 15 60 60 . 15 . 15 390 285 . Anti-Garrison Action 600 | . . . . . . . 100 . 200 150 . . . 150 . . Destroy Structure 944 | . 17 26 . . 52 62 60 38 55 16 15 28 4 283 288 . Lose Combat Pursuer 255 | . 45 . . . 45 . . . 15 15 90 . . 15 30 . Influence Decreases 10120 | 5 367 569 41 . 588 704 1 592 168 774 1189 729 832 946 2240 375 Entered New Map 2744 | . 2 207 41 . . 148 1 127 8 342 233 381 350 . 699 205 Time Decay 4757 | 5 315 362 . . 488 437 . 455 . 392 546 278 182 526 601 170 Lost Part 560 | . 50 . . . 40 20 . . 100 . 10 10 . 20 310 . Lost Ally 760 | . . . . . 60 . . 10 60 40 400 60 . 100 30 . Purge Threat 1299 | . . . . . . 99 . . . . . . 300 300 600 . Squads Dispatched 60 | . 7 . . . 6 5 . 7 . 6 5 1 . 12 11 . Investigation 19 | . 5 . . . 3 1 . 3 . 1 3 1 . 1 1 . Extermination 15 | . . . . . . 4 . 4 . 1 . . . 3 3 . Reinforcement 15 | . 2 . . . 2 . . . . 1 1 . . 4 5 . Assault 7 | . . . . . . . . . . 2 1 . . 2 2 . Garrison 4 | . . . . . 1 . . . . 1 . . . 2 . . Intercept . | . . . . . . . . . . . . . . . . . Searches Triggered . | . . . . . . . . . . . . . . . . . Construction Impeded 1 | . . . . . . . . . . . . . . . 1 . Haulers Reinforced 3 | . . . . . . . . . . 1 . . . 1 1 . Active Scanning Responses . | . . . . . . . . . . . . . . . . . Cargo Convoy Interrupts 1 | . . . . . . . . . . . . . . . 1 . Stealth | -11 -10 -10 -10 -9 -8 -7 -7 -7 -7 -6 -6 -6 -6 -6 -5 -5 --------- Run | Yrd Mat Min Exi Min Mat Fac Gar Fac Gar Fac Ext Cet Arc Hub Fac Upp Distress Signals 17 | . 1 . . . 5 2 . . . 2 4 1 . 1 1 . Communications Jammed 2 | . . . . . . . . . . . . . . . 2 . Distress Signals 2 | . . . . . . . . . . . . . . . 2 . Times Spotted 308 | . 39 7 . . 43 18 5 9 22 9 42 12 22 34 41 5 Peak Tracking Total 10 | . 7 3 . . 8 3 3 2 6 3 8 5 1 7 10 5 Tactical Retreats 17 | . 5 . . . 3 . . . 1 1 4 . . 1 2 . Traps | -11 -10 -10 -10 -9 -8 -7 -7 -7 -7 -6 -6 -6 -6 -6 -5 -5 ------- Run | Yrd Mat Min Exi Min Mat Fac Gar Fac Gar Fac Ext Cet Arc Hub Fac Upp Traps Triggered 17 | . 2 . . . . . 2 . 5 2 4 . . 1 1 . Indirectly 1 | . . . . . . . . . . . . . . 1 . . Trap Hack Attempts . | . . . . . . . . . . . . . . . . . Triggered . | . . . . . . . . . . . . . . . . . Disarmed . | . . . . . . . . . . . . . . . . . Reprogrammed . | . . . . . . . . . . . . . . . . . Reused 5 | . . . . . . . . . 4 1 . . . . . . Traps Extracted . | . . . . . . . . . . . . . . . . . Installed 7 | . . . . . . . . . 5 1 . 1 . . . . Triggered 5 | . . . . . . . . . 4 1 . . . . . . Most Traps Carried 4 | . . . . . . . . . 4 2 1 1 . . . . Machines | -11 -10 -10 -10 -9 -8 -7 -7 -7 -7 -6 -6 -6 -6 -6 -5 -5 ---------- Run | Yrd Mat Min Exi Min Mat Fac Gar Fac Gar Fac Ext Cet Arc Hub Fac Upp Machines Disabled 77 | . . 5 . . 4 6 3 4 6 1 1 . 1 27 19 . Max in Single Turn 12 | . . 3 . . 1 4 1 4 1 . 1 . . 12 6 . Garrison Access 5 | . . . . . . . . 1 . 2 . . . 1 1 . Garrison Relay 4 | . . . . . . . 2 . 2 . . . . . . . Network Hub 2 | . . . . . . . . . . . . . . 2 . . Machines Repaired . | . . . . . . . . . . . . . . . . . Machines Dismantled . | . . . . . . . . . . . . . . . . . Machines Sabotaged . | . . . . . . . . . . . . . . . . . Overloaded Fab Kills . | . . . . . . . . . . . . . . . . . Hacking | -11 -10 -10 -10 -9 -8 -7 -7 -7 -7 -6 -6 -6 -6 -6 -5 -5 --------- Run | Yrd Mat Min Exi Min Mat Fac Gar Fac Gar Fac Ext Cet Arc Hub Fac Upp Machines Accessed 86 | . 6 . 2 . 8 16 2 14 2 5 10 3 1 8 9 . Terminals 51 | . 5 . . . 6 8 2 5 2 1 10 3 . 6 3 . Fabricators 6 | . . . . . . 2 . 1 . 1 . . . . 2 . Repair Stations 6 | . . . . . 2 2 . 1 . . . . . . 1 . Recycling Units 7 | . 1 . . . . 1 . 2 . 1 . . . . 2 . Scanalyzers 4 | . . . . . . 1 . 3 . . . . . . . . Garrison Access 9 | . . . . . . 2 . 2 . 2 . . . 2 1 . Total Hacks 283 | . 14 . 2 . 35 42 5 46 3 12 23 8 25 30 38 . Successful 166 | . 7 . 2 . 22 20 2 29 1 8 9 2 25 15 24 . Failed 117 | . 7 . . . 13 22 3 17 2 4 14 6 . 15 14 . Catastrophic 18 | . 3 . . . 4 . . 2 1 1 . 1 . 2 4 . Database Lockouts . | . . . . . . . . . . . . . . . . . Manual 107 | . 7 . 1 . 10 16 . 15 1 2 6 2 . 24 23 . Terminals 151 | . 12 . . . 17 17 5 17 3 2 23 8 . 26 21 . Fabricators 17 | . . . . . . 5 . 3 . 2 . . . . 7 . Repair Stations 34 | . . . . . 18 8 . 3 . . . . . . 5 . Recycling Units 23 | . 2 . . . . 5 . 9 . 3 . . . . 4 . Scanalyzers 12 | . . . . . . 3 . 9 . . . . . . . . Garrison Access 19 | . . . . . . 4 . 5 . 5 . . . 4 1 . Terminal Hacks 68 | . 5 . 2 . 3 3 2 4 1 . 7 2 25 7 7 . Record 28 | . . . 1 . . . . . . . . 2 25 . . . Part Schematic 1 | . . . . . . . . . . . . . . . 1 . Robot Analysis 4 | . 2 . . . . . . 1 . . . . . 1 . . Prototype ID Bank 4 | . 1 . . . 1 . . . . . . . . 2 . . Open Door 7 | . . . . . . . . . . . 7 . . . . . Branch Access Points 2 | . . . . . 1 . . . . . . . . . 1 . Emergency Access Points 1 | . . . . . . . 1 . . . . . . . . . Terminal Index 2 | . . . . . . 1 . 1 . . . . . . . . Garrison Index 1 | . . . . . . . . 1 . . . . . . . . Unreport Threat 7 | . . . . . . 1 . . . . . . . 2 4 . Locate Traps 4 | . 1 . . . 1 1 . . . . . . . 1 . . Recall Reinforcements 1 | . . . . . . . . . . . . . . 1 . . Registered Components 2 | . 1 . . . . . . 1 . . . . . . . . Zone Layout 1 | . . . . . . . . . . . . . . . 1 . Garrison Registry 1 | . . . . . . . 1 . . . . . . . . . Patrol Navigation 1 | . . . . . . . . . 1 . . . . . . . Proto ID Catalog 1 | . . . 1 . . . . . . . . . . . . . Fabricator Hacks 6 | . . . . . . . . 2 . . . . . . 4 . Network Status 1 | . . . . . . . . . . . . . . . 1 . Load Schematic 3 | . . . . . . . . 1 . . . . . . 2 . Build 2 | . . . . . . . . 1 . . . . . . 1 . Repair Station Hacks 25 | . . . . . 15 5 . 2 . . . . . . 3 . Scan Component 14 | . . . . . 8 3 . 1 . . . . . . 2 . Repair 11 | . . . . . 7 2 . 1 . . . . . . 1 . Recycling Unit Hacks 9 | . 1 . . . . 2 . 3 . 1 . . . . 2 . Report Inventory 7 | . 1 . . . . 1 . 2 . 1 . . . . 2 . Retrieve Components 2 | . . . . . . 1 . 1 . . . . . . . . Scanalyzer 7 | . . . . . . 2 . 5 . . . . . . . . Insert Component 1 | . . . . . . . . 1 . . . . . . . . Analyze 1 | . . . . . . . . 1 . . . . . . . . Retrieve Study 5 | . . . . . . 2 . 3 . . . . . . . . Garrison Access Hacks 13 | . . . . . . 1 . 4 . 5 . . . 2 1 . Unlock Access 4 | . . . . . . 1 . 1 . 2 . . . . . . Seal Access 2 | . . . . . . . . 1 . 1 . . . . . . Coupler Status 7 | . . . . . . . . 2 . 2 . . . 2 1 . Unauthorized Hacks 38 | . 1 . . . 4 7 . 9 . 2 2 . . 6 7 . Terminals 25 | . . . . . 4 5 . 5 . . 2 . . 6 3 . Assimilate 4 | . . . . . . 1 . 1 . . . . . 1 1 . Botnet 21 | . . . . . 4 4 . 4 . . 2 . . 5 2 . Fabricators 2 | . . . . . . . . . . . . . . . 2 . Report 1 | . . . . . . . . . . . . . . . 1 . Fabnet 1 | . . . . . . . . . . . . . . . 1 . Repair Stations . | . . . . . . . . . . . . . . . . . Recycling Units 10 | . 1 . . . . 2 . 3 . 2 . . . . 2 . Monitor 2 | . . . . . . . . 1 . . . . . . 1 . Reject 3 | . . . . . . 1 . 1 . 1 . . . . . . Recyclers 4 | . . . . . . 1 . 1 . 1 . . . . 1 . Tunnel 1 | . 1 . . . . . . . . . . . . . . . Scanalyzers . | . . . . . . . . . . . . . . . . . Garrison Access 1 | . . . . . . . . 1 . . . . . . . . Watchers 1 | . . . . . . . . 1 . . . . . . . . Data Cores Recovered 1 | . . . . . . . . . . . . . . 1 . . Used . | . . . . . . . . . . . . . . . . . Hacking Detections 72 | . 5 . . . 8 16 2 12 2 5 8 3 . 7 4 . Full Trace Events 15 | . 2 . . . 3 1 . 3 . 1 2 1 . 1 1 . Feedback Events 1 | . . . . . . . . . . 1 . . . . . . Corruption 1 | . . . . . . . . . . 1 . . . . . . Feedback Blocked . | . . . . . . . . . . . . . . . . . Robot Schematics Acquired . | . . . . . . . . . . . . . . . . . Robots Built . | . . . . . . . . . . . . . . . . . Authchips . | . . . . . . . . . . . . . . . . . Time . | . . . . . . . . . . . . . . . . . Total Robot Build Rating . | . . . . . . . . . . . . . . . . . Part Schematics Acquired 2 | . . . . . . . . 1 . . . . . . 1 . Parts Built 4 | . . . . . . . . 2 . . . . . . 2 . Authchips . | . . . . . . . . . . . . . . . . . Time 148 | . . . . . . . . 42 . . . . . . 106 . Total Part Build Rating 20 | . . . . . . . . 8 . . . . . . 12 . Part Studies Acquired 5 | . . . . . . 2 . 3 . . . . . . . . Parts Repaired 10 | . . . . . 7 2 . 1 . . . . . . . . Time 431 | . . . . . 252 29 . 14 . . . . . . 136 . Parts Recycled . | . . . . . . . . . . . . . . . . . Recycled Matter . | . . . . . . . . . . . . . . . . . Retrieved Matter . | . . . . . . . . . . . . . . . . . Retrieved Components 3 | . . . . . . . . 3 . . . . . . . . Parts Scanalyzed 1 | . . . . . . . . 1 . . . . . . . . Part Schematics Acquired 1 | . . . . . . . . 1 . . . . . . . . Parts Damaged . | . . . . . . . . . . . . . . . . . Bothacking | -11 -10 -10 -10 -9 -8 -7 -7 -7 -7 -6 -6 -6 -6 -6 -5 -5 ------------ Run | Yrd Mat Min Exi Min Mat Fac Gar Fac Gar Fac Ext Cet Arc Hub Fac Upp Used RIF Installer 2 | . . . . . . . 1 . 1 . . . . . . . Command Fork 1 | . . . . . . . . . 1 . . . . . . . Robots Hacked 27 | . . . . . . . . 5 6 2 7 1 2 3 1 . Non-combat 12 | . . . . . . . . 5 . 1 1 . 2 3 . . Combat 15 | . . . . . . . . . 6 1 6 1 . . 1 . Robot Hacks Applied 32 | . . . . . . . . 7 6 2 8 1 2 4 2 . parse_system 4 | . . . . . . . . 3 . . . . 1 . . . no_distress 2 | . . . . . . . . 2 . . . . . . . . generate_echo 2 | . . . . . . . . . . . 1 . . 1 . . map_walls 1 | . . . . . . . . . . . . . . 1 . . find_recycling 2 | . . . . . . . . 1 . 1 . . . . . . ignore_parts 1 | . . . . . . . . 1 . . . . . . . . purge_threat 1 | . . . . . . . . . . . . . 1 . . . mark_security 1 | . . . . . . . . . . . . . . 1 . . find_shortcuts 2 | . . . . . . . . . . . 1 . . . 1 . broadcast_data 1 | . . . . . . . . . . . 1 . . . . . disrupt_area 2 | . . . . . . . . . 1 . 1 . . . . . spike_heat 1 | . . . . . . . . . 1 . . . . . . . overwrite_iff 1 | . . . . . . . . . . . 1 . . . . . streamctrl_high 1 | . . . . . . . . . 1 . . . . . . . formatsys_high 10 | . . . . . . . . . 3 1 3 1 . 1 1 . Relay Couplers Released 25 | . . . . . . . 7 3 8 2 . . . 2 3 . Machine Destruction 22 | . . . . . . . 7 . 8 2 . . . 2 3 . Programmers 3 | . . . . . . . . 3 . . . . . . . . Attached 11 | . . . . . . . 1 . 4 . 3 1 1 . 1 . Fabnet Peak Effective % . | . . . . . . . . . . . . . . . . . Robots Rewired 15 | . . . . . . . . . . . 15 . . . . . Allies Hacked . | . . . . . . . . . . . . . . . . . Hacks Repelled . | . . . . . . . . . . . . . . . . . Allies | -11 -10 -10 -10 -9 -8 -7 -7 -7 -7 -6 -6 -6 -6 -6 -5 -5 -------- Run | Yrd Mat Min Exi Min Mat Fac Gar Fac Gar Fac Ext Cet Arc Hub Fac Upp Total Allies 49 | . . . . 3 . 1 . 1 6 1 28 6 . 1 2 . Largest Group 13 | . . . . 3 3 1 . 1 3 3 12 13 9 8 1 . Highest-Rated Group 847 | . . . . 40 40 10 . 26 207 202 400 847 729 557 49 . Highest-Rated Ally 159 | . . . . 16 16 10 . 26 95 90 159 159 159 96 49 . Total Orders 15 | . . . . . . . . 3 1 . . 5 . 6 . . STAY 4 | . . . . . . . . 1 . . . 1 . 2 . . ROAM 3 | . . . . . . . . 1 . . . 1 . 1 . . FOLLOW 4 | . . . . . . . . 1 . . . 2 . 1 . . GUARD 3 | . . . . . . . . . 1 . . 1 . 1 . . AID 1 | . . . . . . . . . . . . . . 1 . . Ally Attacks 408 | . . . . . 39 . . . 12 28 136 42 9 133 9 . Total Damage 13061 | . . . . . 386 . . . 271 1049 3819 1765 188 4936 647 . Kills 93 | . . . . . 5 . . . 4 7 32 10 2 30 3 . Allies Corrupted 1 | . . . . . . . . . . . . . . 1 . . Allies Melted . | . . . . . . . . . . . . . . . . . Intel | -11 -10 -10 -10 -9 -8 -7 -7 -7 -7 -6 -6 -6 -6 -6 -5 -5 ------- Run | Yrd Mat Min Exi Min Mat Fac Gar Fac Gar Fac Ext Cet Arc Hub Fac Upp Active Infowar (turns) 18082 | . 562 796 324 340 2120 2124 961 1683 1684 923 1570 604 568 1735 1746 342 Optics 15486 | . . . . . 2088 2124 961 1683 1684 923 1570 604 568 1735 1204 342 Terrain 6678 | . 553 796 324 340 1313 1947 65 1339 1 . . . . . . . Traps 5260 | . . . . . . 8 196 352 1102 923 398 176 568 956 581 . Seismic 9 | . 9 . . . . . . . . . . . . . . . Cloaking 953 | . . . . . 41 146 50 45 225 . . . . 11 435 . Spoofing 596 | . . . . . . . . . . 1 . 1 . 553 41 . Jamming 1865 | . . . . . . 312 . 777 . . . . . . 776 . Robot Analysis Total 4 | . 2 . . . . . . 1 . . . . . 1 . . Derelict Logs Recovered 2 | . . 1 . 1 . . . . . . . . . . . . Drone Launches . | . . . . . . . . . . . . . . . . . Drone Recoveries . | . . . . . . . . . . . . . . . . . Exploration | -11 -10 -10 -10 -9 -8 -7 -7 -7 -7 -6 -6 -6 -6 -6 -5 -5 ------------- Run | Yrd Mat Min Exi Min Mat Fac Gar Fac Gar Fac Ext Cet Arc Hub Fac Upp Turns Passed 18759 | 99 924 827 324 340 2120 2124 961 1683 1684 923 1570 604 568 1735 1929 344 Spaces Moved 11709 | 44 594 627 308 297 1152 1391 564 1235 788 646 1038 377 365 929 910 444 Core 535 | . . . . . . . . . . . . . . . 91 444 Treads 1988 | 44 99 . . . . . . . . . . 1 96 929 819 . Legs . | . . . . . . . . . . . . . . . . . Wheels 9186 | . 495 627 308 297 1152 1391 564 1235 788 646 1038 376 269 . . . Hover . | . . . . . . . . . . . . . . . . . Flight . | . . . . . . . . . . . . . . . . . Fastest Speed 50 | 160 80 105 105 105 95 110 115 110 110 115 101 110 95 160 50 50 Average Speed 121 | 160 98 105 105 105 123 125 121 116 123 115 111 130 120 160 160 50 Slowest Speed 320 | 160 160 105 105 105 145 145 130 130 235 116 116 240 160 160 320 50 Overloaded Moves . | . . . . . . . . . . . . . . . . . Propulsion Burnouts . | . . . . . . . . . . . . . . . . . Robots Hopped . | . . . . . . . . . . . . . . . . . Potential Cave-ins . | . . . . . . . . . . . . . . . . . Cave-ins Triggered . | . . . . . . . . . . . . . . . . . Exploration Rate (%) 56 | 4 85 98 69 54 50 33 61 31 49 14 95 91 100 50 21 56 Regions Visited 16 Branch Regions 8 Pre-discovered Areas 3 | . 1 . 1 1 . . . . . . . . . . . . Known Exits Taken 5 | . . . . . . 1 . 1 . . 1 . . 1 1 . Unknown Exits Taken 9 | 1 1 1 1 1 1 . . . . 1 . 1 1 . . . Scrap Searched 3 | . . 2 . 1 . . . . . . . . . . . . Spaces Dug 71 | . 9 . . . 10 4 . 24 . 8 2 1 . 7 6 . Terrain Destroyed 721 | . 19 30 . . 56 69 . 37 . 9 11 5 4 351 130 . Melee 14 | . . . . . 10 4 . . . . . . . . . . Projectile 118 | . . . . . . . . 29 . 9 11 5 4 17 43 . AOE 589 | . 19 30 . . 46 65 . 8 . . . . . 334 87 . Terrain Rammed . | . . . . . . . . . . . . . . . . . Walls Destroyed . | . . . . . . . . . . . . . . . . . Machines Disabled . | . . . . . . . . . . . . . . . . . Actions | -11 -10 -10 -10 -9 -8 -7 -7 -7 -7 -6 -6 -6 -6 -6 -5 -5 --------- Run | Yrd Mat Min Exi Min Mat Fac Gar Fac Gar Fac Ext Cet Arc Hub Fac Upp Total 15235 | 64 792 787 309 326 1697 1672 804 1413 1386 802 1400 465 444 1099 1208 567 Wait 1895 | 3 55 115 . 26 363 133 166 68 414 92 174 24 6 59 81 116 Move 11693 | 43 593 626 307 296 1151 1391 562 1234 787 645 1037 376 364 928 909 444 Hop . | . . . . . . . . . . . . . . . . . Pick Up 197 | 5 18 12 1 2 30 23 7 11 16 10 11 13 7 9 22 . Fast Attach 68 | . 5 2 . . 10 5 2 4 3 6 4 3 6 5 13 . Attach 76 | . 5 . . . 7 3 . 2 13 1 7 2 4 1 29 2 Detach 9 | . . . . . . . . 1 . . . . 2 1 4 1 Swap 231 | 5 16 6 . . 28 29 11 22 18 6 22 12 7 29 20 . Drop 204 | 4 21 14 1 2 17 22 12 14 10 13 11 18 11 17 16 1 Fire 606 | 4 77 12 . . 78 36 27 50 87 20 44 16 7 42 106 . Melee 107 | . . . . . 13 30 . 5 8 . 5 . 30 8 8 . Ram 5 | . 2 . . . . . . . . . . . . . . 3 Kick . | . . . . . . . . . . . . . . . . . Crush . | . . . . . . . . . . . . . . . . . Escape Stasis 64 | . . . . . . . 16 . 24 8 16 . . . . . Rewire 73 | . . . . . . . 1 2 1 . 69 . . . . . Trap 7 | . . . . . . . . . 5 1 . 1 . . . . Miscellaneous . | . . . . . . . . . . . . . . . . . Route ------- -11/Scrapyard -10/Materials (discovered 4 exits: [*Mat x2] / [*Min x2]) -10/Mines (discovered 3 exits: [*Mat x2] / *Exi) -10/Exiles -9/Mines -8/Materials (discovered 2 exits: *Fac x2) -7/Factory -7/Garrison (discovered 3 exits: *Fac x3) -7/Factory (discovered 3 exits: *Fac / [*Low] / Gar) -7/Garrison -6/Factory -6/Extension (discovered 3 exits: *Fac x2 / *Cet) -6/Cetus (discovered 2 exits: *Fac / *Arc) -6/Archives (discovered 3 exits: *Fac / *Hub x2) -6/Hub_04(d) (discovered 2 exits: *Fac x2) -5/Factory (discovered 2 exits: *Upp x2) -5/Upper Caves History --------- Turn | Location | Event 10 | -11/Scrapyard | Discovered new exit (range 3) 100 | -11/Scrapyard | Entered Materials 168 | -10/Materials | Discovered new exit (range 6) 304 | -10/Materials | Build established: Mutant 549 | -10/Materials | Discovered new exit (range 4) 609 | -10/Materials | Discovered new exit (range 11) 647 | -10/Materials | Core integrity fell below 50% 700 | -10/Materials | Derelicts attacked the area 945 | -10/Materials | Discovered new exit (range 9) 1024 | -10/Materials | Entered Mines 1029 | -10/Mines | Core integrity fell below 20% 1142 | -10/Mines | Discovered new exit (range 13) 1484 | -10/Mines | Found DCF Scrap (12 items) 1590 | -10/Mines | Assembled infested the area 1597 | -10/Mines | Received a Rocket Launcher from a helpful Derelict 1776 | -10/Mines | Discovered new exit (range 5) 1845 | -10/Mines | Discovered new exit (range 6) 1846 | -10/Mines | Deemed a non-threat by the Exiles lab entrance 1851 | -10/Mines | Entered Exiles 1877 | -10/Exiles | Met 8R-AWN 1896 | -10/Exiles | Met EX-HEX 1925 | -10/Exiles | Met EX-BIN 1956 | -10/Exiles | Met EX-DEC 1962 | -10/Exiles | Learned location of Zion (-6) 1993 | -10/Exiles | Aligned with FarCom system 1994 | -10/Exiles | Given EX-Vault access code 2018 | -10/Exiles | Opened EX-Vault 2025 | -10/Exiles | Found Cloak of Protection 2045 | -10/Exiles | Build established: Scavenger-Mutant 2046 | -10/Exiles | Warned to stay clear of 0b10 Research branches 2165 | -10/Exiles | Discovered new exit (range 12) 2175 | -10/Exiles | Left Exiles lab with Cloak of Protection 2175 | -10/Exiles | Entered Mines 2299 | -9/Mines | Discovered new exit (range 8) 2317 | -9/Mines | Learned location of Storage (-9) 2436 | -9/Mines | Assisted by bots powering up and referring to "LRC-V3" 2460 | -9/Mines | Build established: Scavenger-Skirmisher 2515 | -9/Mines | Entered Materials 2515 | -8/Materials | Accompanied by 3 allies 2515 | -8/Materials | Evolved 4 slots: Utility x4 2636 | -8/Materials | Repaired Com. Wheel 2666 | -8/Materials | Repaired Com. Wheel? 3471 | -8/Materials | Discovered new exit (range 4) 3598 | -8/Materials | Discovered new exit (range 16) 3972 | -8/Materials | Build established: Mutant 4002 | -8/Materials | Garrison activated, responded to threat 4188 | -8/Materials | Repaired Imp. Heat Sink 4233 | -8/Materials | Repaired Imp. Terrain Scanner 4271 | -8/Materials | Repaired Hpw. Shotgun 4298 | -8/Materials | Repaired Wheel 4358 | -8/Materials | Repaired Enh. Autogun 4540 | -8/Materials | Build established: Skirmisher 4635 | -8/Materials | Entered Factory 4635 | -7/Factory | Evolved 2 slots: Propulsion x1, Utility x1 5274 | -7/Factory | Repaired Wheel 5453 | -7/Factory | Build established: Assassin 5764 | -7/Factory | P-60 Hacker assimilated allied Technician 4a 5996 | -7/Factory | Repaired Rocket Launcher? 6759 | -7/Factory | Identified exit to Garrison 6759 | -7/Factory | Entered Garrison 6813 | -7/Garrison | Discovered new exit (range 46) 6813 | -7/Garrison | Discovered new exit (range 71) 6813 | -7/Garrison | Discovered new exit (range 62) 6847 | -7/Garrison | Build established: Skirmisher 6939 | -7/Garrison | Triggered checkpoint 7005 | -7/Garrison | Installed Relay Interface Framework 7049 | -7/Garrison | Garrison Relay disabled 7089 | -7/Garrison | Triggered checkpoint 7127 | -7/Garrison | Triggered checkpoint 7166 | -7/Garrison | Triggered checkpoint 7186 | -7/Garrison | Garrison Relay disabled 7283 | -7/Garrison | Triggered checkpoint 7303 | -7/Garrison | Build established: Mutant 7720 | -7/Garrison | Entered Factory 7747 | -7/Factory | Repaired Arm. Huge Wheel 8041 | -7/Factory | Build established: Skirmisher 8113 | -7/Factory | Discovered new exit (range 7) 8496 | -7/Factory | Identified exit to Garrison 8950 | -7/Factory | Discovered new exit (range 7) 9087 | -7/Factory | Fabricated Remote Datajack (x2) 9403 | -7/Factory | Entered Garrison 10159 | -7/Garrison | Triggered checkpoint 10220 | -7/Garrison | Garrison Relay disabled 10437 | -7/Garrison | Triggered checkpoint 10774 | -7/Garrison | Build established: Bothacker-Mutant 10823 | -7/Garrison | Lost 4 parts (1n3u) 10842 | -7/Garrison | Core integrity fell below 50% 10881 | -7/Garrison | Destroyed 8 combat bots 10886 | -7/Garrison | Lost 6 parts (1p1n3u1w) 10941 | -7/Garrison | Triggered checkpoint 10941 | -7/Garrison | Found embedded Infiltrators 10971 | -7/Garrison | Garrison Relay disabled 11008 | -7/Garrison | Expanded RIF knowledge: Command Fork 11050 | -7/Garrison | Discovered new exit (range 12) 11087 | -7/Garrison | Entered Factory 11087 | -6/Factory | Accompanied by 3 allies 11087 | -6/Factory | Evolved 2 slots: Propulsion x1, Utility x1 11118 | -6/Factory | Found Launcher Loader 11124 | -6/Factory | Identified exit to Garrison 11358 | -6/Factory | Build established: Bothacker-Skirmisher 11525 | -6/Factory | Identified exit to Garrison 11545 | -6/Factory | Garrison activated, responded to threat 11727 | -6/Factory | Discovered new exit (range 21) 12010 | -6/Factory | Entered Extension 12010 | -6/Extension | Accompanied by 2 allies 12013 | -6/Extension | Disrupted transfer network 12146 | -6/Extension | Rescued a captive Derelict 12168 | -6/Extension | Rescued a captive Derelict 12432 | -6/Extension | Rescued a captive Derelict 12433 | -6/Extension | Rescued a captive Derelict 12436 | -6/Extension | Lost 8 allies 12463 | -6/Extension | Rescued A7 12483 | -6/Extension | Rescued a captive Derelict 12485 | -6/Extension | Rescued a captive Derelict 12506 | -6/Extension | Spotted B-75 Beast 12671 | -6/Extension | Build established: Bothacker-Mutant 12946 | -6/Extension | Allies destroyed B-75 Beast 12951 | -6/Extension | Spotted B-75 Beast 12966 | -6/Extension | Destroyed B-75 Beast 13014 | -6/Extension | Discovered new exit (range 3) 13042 | -6/Extension | Build established: Commander-Mutant 13060 | -6/Extension | First assault squad dispatched 13076 | -6/Extension | Rescued a captive Derelict 13077 | -6/Extension | Rescued a captive Derelict 13266 | -6/Extension | Lost 3 allies 13407 | -6/Extension | Discovered new exit (range 10) 13408 | -6/Extension | Discovered new exit (range 6) 13533 | -6/Extension | Identified exit to Cetus 13537 | -6/Extension | Identified exit to Factory 13580 | -6/Extension | Entered Cetus 13580 | -6/Cetus | Accompanied by 8 allies (A7) 13585 | -6/Cetus | Acquired a Cetus Manufacturing Module code from A7 13600 | -6/Cetus | Spotted Cetus Guard 13600 | -6/Cetus | Spotted Cetus Guard 13600 | -6/Cetus | Spotted Cetus Guard 13600 | -6/Cetus | Spotted Cetus Guard 13613 | -6/Cetus | Allies destroyed Cetus Guard 13620 | -6/Cetus | Allies destroyed Cetus Guard 13622 | -6/Cetus | Destroyed Cetus Guard 13632 | -6/Cetus | Allies destroyed Cetus Guard 13775 | -6/Cetus | Started Cetus Manufacturing Module 13793 | -6/Cetus | Escorted A7 to Cetus Mainframe 13800 | -6/Cetus | Manufactured an Enhanced Grunt 13825 | -6/Cetus | Manufactured an Enhanced Grunt 13850 | -6/Cetus | Manufactured an Enhanced Grunt 13875 | -6/Cetus | Manufactured an Enhanced Grunt 13900 | -6/Cetus | Manufactured an Enhanced Grunt 13936 | -6/Cetus | Discovered new exit (range 22) 13966 | -6/Cetus | Spotted Cetus Guard 13967 | -6/Cetus | Spotted Cetus Guard 13968 | -6/Cetus | Spotted Cetus Guard 13971 | -6/Cetus | Spotted Cetus Guard 13974 | -6/Cetus | Allies destroyed Cetus Guard 13979 | -6/Cetus | Allies destroyed Cetus Guard 13982 | -6/Cetus | Allies destroyed Cetus Guard 13986 | -6/Cetus | Discovered exit to Factory (range 22) 13987 | -6/Cetus | Destroyed Cetus Guard 14008 | -6/Cetus | Met Revision 17 14013 | -6/Cetus | Lost 3 allies 14184 | -6/Cetus | Entered Archives 14184 | -6/Archives | Accompanied by 9 allies (A7) 14189 | -6/Archives | Received a hacking code to weaken MAIN.C 14244 | -6/Archives | Unable to access archive contents 14249 | -6/Archives | Discovered exit to Factory (range 14) 14255 | -6/Archives | Unable to access archive contents 14291 | -6/Archives | Discovered new exit (range 18) 14299 | -6/Archives | Unable to access archive contents 14304 | -6/Archives | Discovered new exit (range 15) 14310 | -6/Archives | Unable to access archive contents 14543 | -6/Archives | Build established: Commander-Assassin 14752 | -6/Archives | Entered Hub_04(d) 14752 | -6/Hub_04(d) | Accompanied by 7 allies 14984 | -6/Hub_04(d) | Garrison activated, responded to threat 15077 | -6/Hub_04(d) | Discovered exit to Factory (range 18) 15272 | -6/Hub_04(d) | Garrison activated, responded to threat 15278 | -6/Hub_04(d) | Spotted B-75 Beast 15293 | -6/Hub_04(d) | Allies destroyed B-75 Beast 15361 | -6/Hub_04(d) | Build established: Scavenger-Skirmisher 15398 | -6/Hub_04(d) | Lost 3 allies 15452 | -6/Hub_04(d) | Discovered exit to Factory (range 12) 15752 | -6/Hub_04(d) | Found Launcher Loader 16085 | -6/Hub_04(d) | Build established: Scavenger-Mutant 16209 | -6/Hub_04(d) | Network Hub disabled 16470 | -6/Hub_04(d) | Network Hub disabled 16482 | -6/Hub_04(d) | Spotted Lightning 16482 | -6/Hub_04(d) | Spotted Lightning 16487 | -6/Hub_04(d) | Entered Factory 16487 | -5/Factory | Evolved 2 slots: Power x1, Utility x1 16796 | -5/Factory | Build established: Scavenger-Skirmisher 17123 | -5/Factory | Lost 4 parts (1p3u) 17191 | -5/Factory | System corruption reached 10% 17340 | -5/Factory | Build established: Scavenger-Mutant 17912 | -5/Factory | Cargo convoy interrupted 17934 | -5/Factory | Fabricated Adv. System Restoration Module (x2) 17996 | -5/Factory | Lost 4 parts (1p2n1u) 18339 | -5/Factory | Core integrity fell below 50% 18345 | -5/Factory | Destroyed 16 combat bots 18373 | -5/Factory | Core integrity fell below 20% 18400 | -5/Factory | Lost 20 parts (3p4n7u6w) 18409 | -5/Factory | Identified exit to Upper Caves 18416 | -5/Factory | Entered Upper Caves 18632 | -5/Upper Caves | Build established: Mutant 18696 | -5/Upper Caves | Encountered a Warlord checkpoint 18703 | -5/Upper Caves | Spotted B-75 Beast 18760 | -5/Upper Caves | Destroyed by S-27 Virus with Autogun Last Messages --------------- 18524_ Adv. System Restoration Module purges 1% system corruption (1%). 18535_ Adv. System Restoration Module purges 1% system corruption (0%). 18535_ Discarded Adv. System Restoration Module. 18556_ HX-CCR(k) breaks down the debris. 18603_ DY-E94(k) breaks down the debris. 18608_ Acquired 3 matter. 18610_ Acquired 1 matter. 18613_ Acquired 3 matter. 18613_ Acquired 5 matter. 18615_ Acquired 2 matter. 18616_ Acquired 3 matter. 18616_ Acquired 5 matter. 18618_ Acquired 3 matter. 18696_ I7-Q1C(M): "If you spot any more Unaware lurking around the area, let us know." 18758_ Slammed into S-27 Virus. 18758_ Destabilizing: System interference. 18758_ Visual Processing Unit temporarily disabled. 18758_ Imp. Coolant Injector temporarily disabled. 18759_ Slammed into S-27 Virus. Map ----- +----------------------------------------------------+ | | | | | | | | | | | ?????????????????????????????????????????????????? | | ?????????????????????????????????????????????????? | | ?????????????????????????????????????????????????? | | ?????????????????????????????????????????????????? | | ?????????????????????????????????????????????????? | | ?????????????????????????????????????????????????? | | ?????????????????????????????????????????????????? | | ?????????????????????????????????????????????????? | | ?????????????????????????????????????????????????? | | ?????????????????????????????????????????????????? | | ?????????????????????????????????????????????????? | | ?????????????????????????????????????????????????? | | ?????????????????????????????????????????????????? | | ?????????????????????????????????????????????????? | | ????????????????????????????????#####????????????? | | ??????????????????????????????### ##?????######? | | ??????????????????????###??#### ##????# ## | | ??????????????????????# ### #???## # | | ??????????????????????# ##?## # | | ?????????????????????## s ### # | | ????????????????# ### s@ss | | ???????????????# ####### | | ???????????????# s #?????##### | | ???????????????## #?????????## | | ????????????????######## ?????????## #### | | ???????????????????????# ?????????# #??# # | | ??????????????????????? ??####???# ##?# ## | | ??????????????????????? #?## ???# #### #? | | ?????????????????????? ##?# ??## ## #? | | ?????????????????????? #???# ??# ## ## | | ??????????????????????##???## ??## ## ? | | ???????????????????????????# ##?### ## | | ???????????????????????????# ##??# ###### | | ????????????????????????????# #### ##??### | | ????????????????????????????# ##???# | | ?????????????????????????????# #????# | | ?????????????????????????????# ########?????# | | ?????????????????????????????# #####??????## | | ?????????????????????????????# ####?## # | | ?????????????????????????????## ### | | ??????????????????????????????# | | ?????????????????????????????# ## | | ???????????????????????????# #### | | ??????????????????????????# #??## | | ??????????????????????????# #???# ## | +----------------------------------------------------+ Best States ------------- Heat Dissipation 86 Coolant Potential 80 Energy Generation 31 Energy Capacity 950 Matter Stores 300 Matter Capacity 300 Sight Range 22 Terrain Scan Range 16 Terrain Scan Density 210 Jamming Range 14 Cloak Strength 5 Additional Mass Support 9 EM Shielding 4 Armor Coverage 675 Resistance: EM 25 Power Shielding 33 Weapon Cycling 20 Evasion (%) 50 Targeting Accuracy 8 Core Analysis 6 Recoil Reduction 4 Kinecelleration 40 Offensive Hacking 24 Defensive Hacking 12 Relay Coupler Types 2 Relay Coupler Value 54 Item Schematics ----------------- Remote Datajack | -7/Factory | Scanalyzed Adv. System Restoration Module | -5/Factory | Hacked Robot Schematics ------------------ None Fabricated ------------ Remote Datajack | x2 | -7/Factory Adv. System Restoration Module | x2 | -5/Factory Repaired ---------- Com. Wheel | 50% | -8/Materials Com. Wheel | 63% | -8/Materials Imp. Heat Sink | 12% | -8/Materials Imp. Terrain Scanner | 77% | -8/Materials Hpw. Shotgun | 12% | -8/Materials Wheel | 87% | -8/Materials Enh. Autogun | 77% | -8/Materials Wheel | 60% | -7/Factory Rocket Launcher | 38% | -7/Factory Arm. Huge Wheel | 57% | -7/Factory Studied --------- Arm. Wheel | -7/Factory | Hacked Wheel | -7/Factory | Hacked Arm. Huge Wheel | -7/Factory | Hacked Com. Wheel | -7/Factory | Hacked Chainsword | -7/Factory | Hacked Alien Tech Used ----------------- None Achievements -------------- Assimilation Complete Botjacking Generalissimo Infiltrator Not Today, Chutes Professional Mechanic Recruitment Drive Versatile You Will Be Upgraded Challenges ------------ None Game ------ Seed SpacefoldProjectileSpear Manual? 0 Play Time 09:19:53 Cumulative 279.2 hours Start 2025.12.31 @ 11:45:14 End 2026.01.02 @ 21:23:15 Sessions 23 Manual Loads 0 Difficulty Rogue Special Mode None Game No. 87 Rogue 87 Adventurer 0 Explorer 0 Win Type - Total 2 Types 2/0/0/0/0/0/0/0/0/0 Lore% 59 Gallery% 62 Achievement% 44 Wizard Run 0 Options --------- Layout 0 ASCII 0 Keyboard 0 Movement Numpad Keybinds 1 Fullscreen 2 Font 18/X11 Map View 76x50 Zoom Use 0% Tactical HUD 1 Map Filters NONE Filters NONE Steam 1 RUN: ecf92da6-a72b-464d-a33d-ee619fe9bc9c